[Event "XIX Najdorf Memorial 2019"]
[Site "Warsaw"]
[Date "2019.07.14"]
[Round "9.6"]
[White "Noe, Christopher"]
[Black "Klekowski, Maciej"]
[Result "1/2-1/2"]
[ECO "E46"]
[WhiteElo "2534"]
[BlackElo "2482"]
[Annotator "ChessBase"]
[PlyCount "51"]
[EventDate "2019.07.06"]
[EventType "swiss"]
[EventCountry "POL"]
[SourceTitle "playchess.com"]
[Source "ChessBase"]
[SourceQuality "1"]
[TimeControl "40/5400+30:1800+30"]

1. d4 {[%emt 0:00:00]} Nf6 {[%emt 0:00:00]} 2. c4 {[%emt 0:00:00]} e6 {[%emt 0:00:04]} 3. Nc3 {[%emt 0:00:00]} Bb4 {[%emt 0:00:07]} 4. e3 {[%emt 0:00:00]} O-O {[%emt 0:00:36]} 5. Nge2 {[%emt 0:00:00]} Re8 {[%emt 0:01:36]} 6. a3 {[%emt 0:00:17]} Bf8 {[%emt 0:00:08]} 7. e4 {[%emt 0:00:06]} d5 {[%emt 0:00:51]} 8. e5 {[%emt 0:00:11]} Nfd7 {[%emt 0:00:32]} 9. cxd5 {[%emt 0:00:59]} exd5 {[%emt 0:00:08]} 10. Be3 {[%emt 0:00:18]} c5 {[%emt 0:04:30]} 11. f4 {[%emt 0:00:12]} Nc6 {[%emt 0:00:38]} 12. dxc5 {[%emt 0:06:03]} Nxc5 {[%emt 0:10:14]} 13. b4 {[%emt 0:00:25]} d4 {[%emt 0:03:00]} 14. Nxd4 {[%emt 0:00:06]} Nxd4 {[%emt 0:00:07]} 15. Qxd4 {[%emt 0:00:11]} Qxd4 {[%emt 0:01:43]} 16. Bxd4 {[%emt 0:00:06]} Nb3 {[%emt 0:03:26]} 17. Rd1 {[%emt 0:00:06]} a5 {[%emt 0:08:30]} 18. Nd5 {[%emt 0:16:32]} Bg4 {[%emt 0:07:18]} 19. Be2 {[%emt 0:07:00]} Bxe2 {[%emt 0:00:10]} 20. Kxe2 {[%emt 0:00:05]} axb4 {[%emt 0:01:23]} 21. axb4 {[%emt 0:07:40]} Ra2+ {[%emt 0:01:52]} 22. Kf3 {[%emt 0:00:39]} Nd2+ {[%emt 0:09:55]} 23. Ke3 {[%emt 0:07:14]} Nc4+ {[%emt 0:02:00]} 24. Kf3 {[%emt 0:00:06]} Nd2+ {[%emt 0:00:27]} 25. Ke3 {[%emt 0:00:05]} Nc4+ {[%emt 0:00:08]} 26. Kf3 {[%emt 0:00:05]} 1/2-1/2

[Event "XIX Najdorf Memorial 2019"]
[Site "Warsaw"]
[Date "2019.07.14"]
[Round "9.6"]
[White "Nguyen, Piotr"]
[Black "Pacan-Milej, Kosma"]
[Result "0-1"]
[ECO "A53"]
[WhiteElo "2420"]
[BlackElo "2272"]
[Annotator "ChessBase"]
[PlyCount "98"]
[EventDate "2019.07.06"]
[EventType "swiss"]
[EventCountry "POL"]
[SourceTitle "playchess.com"]
[Source "ChessBase"]
[SourceQuality "1"]
[TimeControl "40/5400+30:1800+30"]

1. d4 {[%emt 0:00:00]} Nf6 {[%emt 0:00:00]} 2. c4 {[%emt 0:00:00]} d6 {[%emt 0:00:00]} 3. Nc3 {[%emt 0:00:39]} Nbd7 {[%emt 0:00:00]} 4. e4 {[%emt 0:04:31]} e5 {[%emt 0:00:00]} 5. d5 {[%emt 0:00:03]} Nc5 {[%emt 0:00:25]} 6. f3 {[%emt 0:00:05]} a5 {[%emt 0:00:09]} 7. Be3 {[%emt 0:00:33]} Be7 {[%emt 0:00:16]} 8. Qd2 {[%emt 0:00:49]} h6 {[%emt 0:00:17]} 9. O-O-O {[%emt 0:03:35]} Nfd7 {[%emt 0:00:30]} 10. g3 {[%emt 0:14:36]} c6 {[%emt 0:00:26]} 11. f4 {[%emt 0:04:04]} a4 {[%emt 0:13:38]} 12. Nf3 {[%emt 0:04:48]} Qa5 {[%emt 0:13:06]} 13. fxe5 {[%emt 0:04:59]} dxe5 {[%emt 0:00:42]} 14. d6 {[%emt 0:07:51]} Bf6 {[%emt 0:11:28]} 15. Kb1 {[%emt 0:18:05]} O-O {[%emt 0:00:48]} 16. g4 {[%emt 0:03:29]} Bd8 {[%emt 0:25:25]} 17. Rg1 {[%emt 0:03:31]} a3 {[%emt 0:04:20]} 18. b3 {[%emt 0:01:46]} Nf6 {[%emt 0:00:15]} 19. Qc2 {[%emt 0:14:21]} Bxg4 {[%emt 0:02:11]} 20. Be2 {[%emt 0:00:37]} Ne6 {[%emt 0:01:34]} 21. Nh4 {[%emt 0:02:07]} Bxe2 {[%emt 0:02:48]} 22. Nxe2 {[%emt 0:00:04]} Bb6 {[%emt 0:01:06]} 23. Bxb6 {[%emt 0:00:13]} Qxb6 {[%emt 0:00:04]} 24. Nf5 {[%emt 0:00:05]} Kh7 {[%emt 0:01:27]} 25. Qc3 {[%emt 0:03:36]} Qf2 {[%emt 0:02:18]} 26. Qh3 {[%emt 0:02:37]} h5 {[%emt 0:06:43]} 27. Rg2 {[%emt 0:02:29]} Ng5 {[%emt 0:00:02]} 28. Qxh5+ {[%emt 0:01:10]} Nxh5 {[%emt 0:00:04]} 29. Rxf2 {[%emt 0:00:02]} Nxe4 {[%emt 0:00:33]} 30. Rf3 {[%emt 0:00:10]} g6 {[%emt 0:04:02]} 31. Nfg3 {[%emt 0:02:00]} Nhxg3 {[%emt 0:00:39]} 32. Nxg3 {[%emt 0:00:54]} Nc5 {[%emt 0:01:47]} 33. b4 {[%emt 0:00:47]} Nd7 {[%emt 0:00:23]} 34. Ne4 {[%emt 0:00:30]} Kg7 {[%emt 0:00:16]} 35. Kc2 {[%emt 0:01:26]} Rh8 {[%emt 0:03:03]} 36. Rd2 {[%emt 0:00:50]} f5 {[%emt 0:00:15]} 37. Ng3 {[%emt 0:00:36]} e4 {[%emt 0:01:22]} 38. Rc3 {[%emt 0:00:29]} Kf6 {[%emt 0:00:35]} 39. c5 {[%emt 0:00:18]} Ke5 {[%emt 0:00:24]} 40. Nf1 {[%emt 0:00:00]} f4 {[%emt 0:00:00]} 41. Rg2 {[%emt 0:05:15]} Rh6 {[%emt 0:11:46]} 42. h4 {[%emt 0:03:22]} f3 {[%emt 0:12:39]} 43. Rg5+ {[%emt 0:02:51]} Kf4 {[%emt 0:00:06]} 44. Nd2 {[%emt 0:04:20]} Ne5 {[%emt 0:02:40]} 45. Nxe4 {[%emt 0:03:38]} Kxe4 {[%emt 0:00:15]} 46. Kd2 {[%emt 0:00:03]} Kf4 {[%emt 0:00:29]} 47. Rxe5 {[%emt 0:01:12]} Kxe5 {[%emt 0:00:05]} 48. Rxf3 {[%emt 0:00:02]} Rxh4 {[%emt 0:00:23]} 49. Kc3 {[%emt 0:00:05]} Rf4 {[%emt 0:00:23]} 0-1

[Event "XIX Najdorf Memorial 2019"]
[Site "Warsaw"]
[Date "2019.07.14"]
[Round "9.7"]
[White "Sieciechowicz, Marcin"]
[Black "Piotrowski, Przemyslaw"]
[Result "0-1"]
[ECO "E92"]
[WhiteElo "2399"]
[BlackElo "2273"]
[Annotator "ChessBase"]
[PlyCount "110"]
[EventDate "2019.07.06"]
[EventType "swiss"]
[EventCountry "POL"]
[SourceTitle "playchess.com"]
[Source "ChessBase"]
[SourceQuality "1"]
[TimeControl "40/5400+30:1800+30"]

1. d4 {[%emt 0:00:00]} Nf6 {[%emt 0:05:33]} 2. c4 {[%emt 0:00:00]} g6 {[%emt 0:00:09]} 3. Nc3 {[%emt 0:00:00]} Bg7 {[%emt 0:00:04]} 4. e4 {[%emt 0:00:00]} d6 {[%emt 0:00:04]} 5. Nf3 {[%emt 0:00:00]} O-O {[%emt 0:00:09]} 6. Be2 {[%emt 0:00:00]} e5 {[%emt 0:00:05]} 7. Be3 {[%emt 0:00:00]} Ng4 {[%emt 0:01:52]} 8. Bg5 {[%emt 0:00:00]} f6 {[%emt 0:00:10]} 9. Bc1 {[%emt 0:00:05]} exd4 {[%emt 0:00:40]} 10. Nxd4 {[%emt 0:00:05]} f5 {[%emt 0:00:38]} 11. f3 {[%emt 0:02:25]} Ne5 {[%emt 0:00:08]} 12. Be3 {[%emt 0:01:28]} f4 {[%emt 0:00:10]} 13. Bf2 {[%emt 0:00:08]} Nbc6 {[%emt 0:00:05]} 14. Qd2 {[%emt 0:05:38]} Nxd4 {[%emt 0:05:57]} 15. Bxd4 {[%emt 0:00:06]} Be6 {[%emt 0:02:33]} 16. Nd5 {[%emt 0:14:38]} c5 {[%emt 0:39:59]} 17. Bf2 {[%emt 0:06:43]} Bxd5 {[%emt 0:00:20]} 18. Qxd5+ {[%emt 0:06:04]} Kh8 {[%emt 0:01:10]} 19. O-O {[%emt 0:04:56]} Nc6 {[%emt 0:01:51]} 20. Rfd1 {[%emt 0:03:32]} Bd4 {[%emt 0:01:07]} 21. Bxd4+ {[%emt 0:09:29]} Nxd4 {[%emt 0:00:06]} 22. Rd2 {[%emt 0:01:18]} b6 {[%emt 0:04:24]} 23. Rad1 {[%emt 0:03:45]} Qf6 {[%emt 0:01:11]} 24. b4 {[%emt 0:04:12]} Rab8 {[%emt 0:01:55]} 25. bxc5 {[%emt 0:14:06]} bxc5 {[%emt 0:02:00]} 26. Bd3 {[%emt 0:00:05]} Kg7 {[%emt 0:05:39]} 27. Rb1 {[%emt 0:02:38]} Rxb1+ {[%emt 0:00:06]} 28. Bxb1 {[%emt 0:00:01]} Rb8 {[%emt 0:00:06]} 29. Bd3 {[%emt 0:01:50]} Rb6 {[%emt 0:10:57]} 30. Rf2 {[%emt 0:04:18]} Nc6 {[%emt 0:02:10]} 31. Bf1 {[%emt 0:01:48]} Qd4 {[%emt 0:05:11]} 32. g3 {[%emt 0:00:23]} Qxd5 {[%emt 0:04:34]} 33. exd5 {[%emt 0:00:37]} Nd4 {[%emt 0:00:48]} 34. Bd3 {[%emt 0:03:29]} a5 {[%emt 0:00:17]} 35. gxf4 {[%emt 0:01:24]} Kf6 {[%emt 0:00:04]} 36. Kg2 {[%emt 0:00:37]} a4 {[%emt 0:00:20]} 37. Rd2 {[%emt 0:01:22]} a3 {[%emt 0:00:54]} 38. Kf2 {[%emt 0:00:14]} Rb8 {[%emt 0:01:22]} 39. Ke3 {[%emt 0:00:45]} Rb4 {[%emt 0:01:49]} 40. Rg2 {[%emt 0:00:00]} Nf5+ {[%emt 0:00:00]} 41. Bxf5 {[%emt 0:13:41]} Kxf5 {[%emt 0:02:52]} 42. Kd3 {[%emt 0:04:31]} Kxf4 {[%emt 0:00:55]} 43. Rc2 {[%emt 0:02:57]} Kxf3 {[%emt 0:02:44]} 44. Rc3 {[%emt 0:00:10]} Ra4 {[%emt 0:02:26]} 45. Rb3 {[%emt 0:02:37]} Ra7 {[%emt 0:00:08]} 46. Rb6 {[%emt 0:04:14]} Rd7 {[%emt 0:00:04]} 47. Ra6 {[%emt 0:01:02]} Kg2 {[%emt 0:00:12]} 48. Rxa3 {[%emt 0:01:09]} Kxh2 {[%emt 0:00:05]} 49. Ra8 {[%emt 0:03:51]} Kg3 {[%emt 0:00:38]} 50. a4 {[%emt 0:00:20]} g5 {[%emt 0:00:17]} 51. a5 {[%emt 0:01:59]} g4 {[%emt 0:00:23]} 52. a6 {[%emt 0:01:08]} h5 {[%emt 0:00:37]} 53. Rb8 {[%emt 0:00:06]} Ra7 {[%emt 0:00:59]} 54. Rb6 {[%emt 0:00:22]} h4 {[%emt 0:00:14]} 55. Rxd6 {[%emt 0:00:46]} h3 {[%emt 0:00:04]} 0-1

[Event "XIX Najdorf Memorial 2019"]
[Site "Warsaw"]
[Date "2019.07.14"]
[Round "9.7"]
[White "Fus, Jakub"]
[Black "Shyam, Sundar M."]
[Result "0-1"]
[ECO "A56"]
[WhiteElo "2341"]
[BlackElo "2520"]
[Annotator "ChessBase"]
[PlyCount "94"]
[EventDate "2019.07.06"]
[EventType "swiss"]
[EventCountry "POL"]
[SourceTitle "playchess.com"]
[Source "ChessBase"]
[SourceQuality "1"]
[TimeControl "40/5400+30:1800+30"]

1. d4 {[%emt 0:00:00]} Nf6 {[%emt 0:00:00]} 2. c4 {[%emt 0:00:03]} c5 {[%emt 0:00:00]} 3. d5 {[%emt 0:00:35]} g6 {[%emt 0:00:03]} 4. Nc3 {[%emt 0:00:46]} Bg7 {[%emt 0:00:07]} 5. e4 {[%emt 0:01:55]} O-O {[%emt 0:00:05]} 6. Bd3 {[%emt 0:02:58]} d6 {[%emt 0:00:06]} 7. Nge2 {[%emt 0:02:45]} e5 {[%emt 0:15:43]} 8. f3 {[%emt 0:05:50]} Nh5 {[%emt 0:05:24]} 9. Be3 {[%emt 0:09:52]} f5 {[%emt 0:04:31]} 10. exf5 {[%emt 0:03:28]} gxf5 {[%emt 0:00:05]} 11. Qd2 {[%emt 0:02:36]} Na6 {[%emt 0:02:18]} 12. O-O-O {[%emt 0:08:28]} Nb4 {[%emt 0:12:42]} 13. Bb1 {[%emt 0:04:20]} Qh4 {[%emt 0:02:48]} 14. f4 {[%emt 0:13:41]} e4 {[%emt 0:01:55]} 15. h3 {[%emt 0:00:47]} Ng3 {[%emt 0:06:35]} 16. Nxg3 {[%emt 0:08:29]} Qxg3 {[%emt 0:00:02]} 17. Rdg1 {[%emt 0:00:34]} Bd7 {[%emt 0:02:50]} 18. Bf2 {[%emt 0:07:26]} Nd3+ {[%emt 0:17:08]} 19. Bxd3 {[%emt 0:00:13]} Qxd3 {[%emt 0:00:02]} 20. Qxd3 {[%emt 0:00:08]} exd3 {[%emt 0:00:01]} 21. Kd2 {[%emt 0:00:26]} a6 {[%emt 0:00:02]} 22. Kxd3 {[%emt 0:01:13]} b5 {[%emt 0:00:01]} 23. b3 {[%emt 0:02:50]} Rab8 {[%emt 0:00:01]} 24. Bh4 {[%emt 0:01:28]} Rfe8 {[%emt 0:08:06]} 25. Re1 {[%emt 0:05:42]} bxc4+ {[%emt 0:02:39]} 26. bxc4 {[%emt 0:00:05]} Rb2 {[%emt 0:00:04]} 27. Rxe8+ {[%emt 0:00:26]} Bxe8 {[%emt 0:00:02]} 28. Re1 {[%emt 0:00:11]} Bh5 {[%emt 0:02:48]} 29. Re6 {[%emt 0:01:33]} Rxg2 {[%emt 0:00:15]} 30. Bf6 {[%emt 0:02:55]} Rg3+ {[%emt 0:03:35]} 31. Kc2 {[%emt 0:00:47]} Bf8 {[%emt 0:00:01]} 32. h4 {[%emt 0:03:26]} Rg4 {[%emt 0:03:41]} 33. Bg5 {[%emt 0:03:44]} Bf7 {[%emt 0:00:30]} 34. Re2 {[%emt 0:00:45]} h6 {[%emt 0:00:10]} 35. Be7 {[%emt 0:01:37]} Rxf4 {[%emt 0:00:49]} 36. Rg2+ {[%emt 0:00:31]} Rg4 {[%emt 0:00:02]} 37. Rxg4+ {[%emt 0:00:04]} fxg4 {[%emt 0:00:03]} 38. Bxf8 {[%emt 0:00:06]} Kxf8 {[%emt 0:00:04]} 39. Ne2 {[%emt 0:00:38]} Ke7 {[%emt 0:00:52]} 40. Kd3 {[%emt 0:00:00]} Kf6 {[%emt 0:00:00]} 41. Ke3 {[%emt 0:01:55]} Ke5 {[%emt 0:01:06]} 42. a3 {[%emt 0:00:09]} Bg6 {[%emt 0:02:16]} 43. Ng3 {[%emt 0:02:04]} Bb1 {[%emt 0:04:36]} 44. Ne2 {[%emt 0:00:43]} Ba2 {[%emt 0:01:30]} 45. Kd3 {[%emt 0:00:06]} Kf5 {[%emt 0:01:17]} 46. h5 {[%emt 0:02:15]} Ke5 {[%emt 0:02:29]} 47. Nc3 {[%emt 0:00:22]} g3 {[%emt 0:00:28] Kd4+} 0-1

[Event "XIX Najdorf Memorial 2019"]
[Site "Warsaw"]
[Date "2019.07.14"]
[Round "9.8"]
[White "Galperin, Platon"]
[Black "Harsha Bharathakoti"]
[Result "1/2-1/2"]
[ECO "E35"]
[WhiteElo "2445"]
[BlackElo "2486"]
[Annotator "ChessBase"]
[PlyCount "32"]
[EventDate "2019.07.06"]
[EventType "swiss"]
[EventCountry "POL"]
[SourceTitle "playchess.com"]
[Source "ChessBase"]
[SourceQuality "1"]
[TimeControl "40/5400+30:1800+30"]

1. d4 {[%emt 0:00:00]} Nf6 {[%emt 0:00:50]} 2. c4 {[%emt 0:00:00]} e6 {[%emt 0:00:23]} 3. Nc3 {[%emt 0:00:00]} Bb4 {[%emt 0:01:43]} 4. Qc2 {[%emt 0:00:00]} d5 {[%emt 0:00:49]} 5. cxd5 {[%emt 0:00:13]} exd5 {[%emt 0:01:34]} 6. Bf4 {[%emt 0:04:05]} c5 {[%emt 0:15:54]} 7. dxc5 {[%emt 0:12:03]} Ne4 {[%emt 0:10:45]} 8. e3 {[%emt 0:02:16]} Qa5 {[%emt 0:05:27]} 9. Rc1 {[%emt 0:00:39]} Qxa2 {[%emt 0:09:38]} 10. Bxb8 {[%emt 0:11:48]} Bxc3+ {[%emt 0:06:33]} 11. bxc3 {[%emt 0:00:11]} Qxc2 {[%emt 0:00:05]} 12. Rxc2 {[%emt 0:00:02]} Rxb8 {[%emt 0:00:07]} 13. c4 {[%emt 0:00:03]} Be6 {[%emt 0:00:51]} 14. cxd5 {[%emt 0:01:37]} Bxd5 {[%emt 0:01:56]} 15. f3 {[%emt 0:01:45]} Nf6 {[%emt 0:13:27]} 16. Ne2 {[%emt 0:00:42]} O-O {[%emt 0:03:42]} 1/2-1/2

[Event "XIX Najdorf Memorial 2019"]
[Site "Warsaw"]
[Date "2019.07.14"]
[Round "9.8"]
[White "Roseneck, Jonas"]
[Black "Bus, Konrad"]
[Result "1-0"]
[ECO "B12"]
[WhiteElo "2398"]
[BlackElo "2264"]
[Annotator "ChessBase"]
[PlyCount "55"]
[EventDate "2019.07.06"]
[EventType "swiss"]
[EventCountry "POL"]
[SourceTitle "playchess.com"]
[Source "ChessBase"]
[SourceQuality "1"]
[TimeControl "40/5400+30:1800+30"]

1. e4 {[%emt 0:00:00]} c6 {[%emt 0:01:15]} 2. d4 {[%emt 0:00:00]} d5 {[%emt 0:00:11]} 3. e5 {[%emt 0:00:00]} Bf5 {[%emt 0:00:17]} 4. h4 {[%emt 0:00:00]} Qc7 {[%emt 0:00:53]} 5. c4 {[%emt 0:03:52]} e6 {[%emt 0:03:31]} 6. Nc3 {[%emt 0:00:43]} dxc4 {[%emt 0:04:18]} 7. Bxc4 {[%emt 0:05:12]} h6 {[%emt 0:00:16]} 8. Nge2 {[%emt 0:02:08]} Ne7 {[%emt 0:02:47]} 9. Ng3 {[%emt 0:05:18]} Bh7 {[%emt 0:03:15]} 10. Bd2 {[%emt 0:20:19]} Nd7 {[%emt 0:03:56]} 11. Rc1 {[%emt 0:00:10]} Nb6 {[%emt 0:01:02]} 12. Bb3 {[%emt 0:09:28]} Qd7 {[%emt 0:01:45]} 13. Nce4 {[%emt 0:02:58]} Nf5 {[%emt 0:02:21]} 14. Nxf5 {[%emt 0:12:13]} Bxf5 {[%emt 0:10:53]} 15. Ng3 {[%emt 0:01:42]} Bh7 {[%emt 0:04:49]} 16. Qg4 {[%emt 0:03:16]} O-O-O {[%emt 0:05:00]} 17. O-O {[%emt 0:00:04]} Qxd4 18. Qf3 {[%emt 0:01:14]} Qxd2 {[%emt 0:13:37]} 19. Rfd1 {[%emt 0:00:34]} Rd3 {[%emt 0:02:06]} 20. Qxf7 {[%emt 0:10:09]} Qb4 {[%emt 0:07:27]} 21. Rxd3 {[%emt 0:00:21]} Bxd3 {[%emt 0:00:19]} 22. Bxe6+ {[%emt 0:05:51]} Kb8 {[%emt 0:01:26]} 23. Qe8+ {[%emt 0:00:01]} Kc7 {[%emt 0:00:09]} 24. Rd1 {[%emt 0:00:01]} Qxb2 {[%emt 0:09:14]} 25. Bf5 {[%emt 0:02:48]} Bc5 {[%emt 0:05:54]} 26. Qxh8 {[%emt 0:00:44]} Bxf2+ {[%emt 0:05:50]} 27. Kh1 {[%emt 0:00:00]} Bxg3 {[%emt 0:03:47]} 28. Qxg7+ {[%emt 0:00:02]} 1-0

[Event "XIX Najdorf Memorial 2019"]
[Site "Warsaw"]
[Date "2019.07.14"]
[Round "9.9"]
[White "Yuffa, Daniil"]
[Black "Krysztofiak, Marcin"]
[Result "1/2-1/2"]
[ECO "E06"]
[WhiteElo "2582"]
[BlackElo "2382"]
[Annotator "ChessBase"]
[PlyCount "104"]
[EventDate "2019.07.06"]
[EventType "swiss"]
[EventCountry "POL"]
[SourceTitle "playchess.com"]
[Source "ChessBase"]
[SourceQuality "1"]
[TimeControl "40/5400+30:1800+30"]

1. d4 {[%emt 0:00:00]} Nf6 {[%emt 0:00:00]} 2. c4 {[%emt 0:00:03]} e6 {[%emt 0:00:00]} 3. g3 {[%emt 0:00:05]} d5 {[%emt 0:00:04]} 4. Bg2 {[%emt 0:00:03]} Be7 {[%emt 0:00:26]} 5. Nf3 {[%emt 0:00:16]} O-O {[%emt 0:00:10]} 6. O-O {[%emt 0:00:03]} c6 {[%emt 0:00:12]} 7. Qc2 {[%emt 0:04:20]} b6 {[%emt 0:00:34]} 8. b3 {[%emt 0:00:46]} Nbd7 {[%emt 0:00:51]} 9. Bb2 {[%emt 0:00:10]} Ba6 {[%emt 0:01:32]} 10. Nbd2 {[%emt 0:04:35]} c5 {[%emt 0:01:12]} 11. Rac1 {[%emt 0:02:03]} Rc8 {[%emt 0:03:23]} 12. Qb1 {[%emt 0:00:44]} dxc4 {[%emt 0:03:56]} 13. Nxc4 {[%emt 0:03:14]} Bb7 {[%emt 0:01:19]} 14. Rfd1 {[%emt 0:01:59]} b5 {[%emt 0:02:37]} 15. Ne3 {[%emt 0:21:37]} Qb6 {[%emt 0:17:26]} 16. Ne5 {[%emt 0:08:39]} Bxg2 {[%emt 0:05:49]} 17. Nxd7 {[%emt 0:01:00]} Nxd7 {[%emt 0:00:07]} 18. Kxg2 {[%emt 0:00:40]} Qb7+ {[%emt 0:09:04]} 19. f3 {[%emt 0:01:38]} Bg5 {[%emt 0:05:11]} 20. Kf2 {[%emt 0:01:01]} Bxe3+ {[%emt 0:02:51]} 21. Kxe3 {[%emt 0:00:06]} cxd4+ {[%emt 0:00:17]} 22. Rxd4 {[%emt 0:01:45]} Rxc1 {[%emt 0:05:19]} 23. Qxc1 {[%emt 0:00:03]} Qb6 {[%emt 0:00:29]} 24. Kd2 {[%emt 0:00:33]} Nf6 {[%emt 0:01:33]} 25. Qc3 {[%emt 0:02:46]} e5 {[%emt 0:01:57]} 26. Rd3 {[%emt 0:00:15]} Re8 {[%emt 0:02:39]} 27. Qb4 {[%emt 0:11:36]} e4 {[%emt 0:04:14]} 28. Rd6 {[%emt 0:02:07]} Qf2 {[%emt 0:07:54]} 29. f4 {[%emt 0:07:59]} e3+ {[%emt 0:02:15]} 30. Kd1 {[%emt 0:00:03]} Qxh2 {[%emt 0:03:26]} 31. Qd4 {[%emt 0:06:18]} Qxg3 {[%emt 0:05:07]} 32. Rd8 {[%emt 0:02:06]} h5 {[%emt 0:01:17]} 33. Rxe8+ {[%emt 0:05:03]} Nxe8 {[%emt 0:00:03]} 34. Qxa7 {[%emt 0:00:57]} Qxf4 {[%emt 0:01:27]} 35. Bc3 {[%emt 0:00:55]} Nd6 {[%emt 0:02:51]} 36. Qa8+ {[%emt 0:01:03]} Kh7 {[%emt 0:00:09]} 37. Qf3 {[%emt 0:00:16]} Qxf3 {[%emt 0:06:37]} 38. exf3 {[%emt 0:00:03]} h4 {[%emt 0:00:14]} 39. Be5 {[%emt 0:01:13]} Nf5 {[%emt 0:00:23]} 40. a4 {[%emt 0:00:00]} f6 {[%emt 0:00:00]} 41. Bh2 {[%emt 0:03:50]} bxa4 {[%emt 0:08:28]} 42. bxa4 {[%emt 0:00:04]} Nd4 {[%emt 0:03:46]} 43. a5 {[%emt 0:06:37]} e2+ {[%emt 0:06:07]} 44. Ke1 {[%emt 0:00:07]} Nxf3+ {[%emt 0:00:12]} 45. Kxe2 {[%emt 0:00:02]} Nd4+ {[%emt 0:00:05]} 46. Ke3 {[%emt 0:00:33]} Nc6 {[%emt 0:00:27]} 47. a6 {[%emt 0:00:22]} g5 {[%emt 0:01:14]} 48. Ke4 {[%emt 0:02:53]} Kg6 {[%emt 0:01:00]} 49. Bd6 {[%emt 0:01:08]} h3 {[%emt 0:01:34]} 50. Kf3 {[%emt 0:00:33]} Kf5 {[%emt 0:03:33]} 51. Kg3 {[%emt 0:01:21]} Ke4 {[%emt 0:00:27]} 52. Be7 {[%emt 0:01:22]} f5 {[%emt 0:04:12]} 1/2-1/2

[Event "XIX Najdorf Memorial 2019"]
[Site "Warsaw"]
[Date "2019.07.14"]
[Round "9.9"]
[White "Chomczyk, Marek"]
[Black "Akesson, Ralf"]
[Result "1/2-1/2"]
[ECO "B13"]
[WhiteElo "2270"]
[BlackElo "2365"]
[Annotator "ChessBase"]
[PlyCount "30"]
[EventDate "2019.07.06"]
[EventType "swiss"]
[EventCountry "POL"]
[SourceTitle "playchess.com"]
[Source "ChessBase"]
[SourceQuality "1"]
[TimeControl "40/5400+30:1800+30"]

1. e4 {[%emt 0:00:00]} c6 {[%emt 0:03:11]} 2. d4 {[%emt 0:00:00]} d5 {[%emt 0:00:10]} 3. exd5 {[%emt 0:00:00]} cxd5 {[%emt 0:00:10]} 4. Bd3 {[%emt 0:00:00]} Nc6 {[%emt 0:00:50]} 5. c3 {[%emt 0:00:00]} Nf6 {[%emt 0:00:35]} 6. Bf4 {[%emt 0:00:02]} Bg4 {[%emt 0:01:04]} 7. Qb3 {[%emt 0:00:15]} Qc8 {[%emt 0:06:27]} 8. Nd2 {[%emt 0:00:08]} Bh5 {[%emt 0:00:28]} 9. Ngf3 {[%emt 0:00:19]} Bg6 {[%emt 0:00:13]} 10. Bb5 {[%emt 0:05:40]} a6 {[%emt 0:05:04]} 11. Bxc6+ {[%emt 0:00:18]} Qxc6 {[%emt 0:00:09]} 12. Ne5 {[%emt 0:00:11]} Qb5 {[%emt 0:00:59]} 13. Nxg6 {[%emt 0:05:41]} hxg6 {[%emt 0:00:22]} 14. Qxb5+ {[%emt 0:00:56]} axb5 {[%emt 0:00:08]} 15. Ke2 {[%emt 0:02:33]} e6 {[%emt 0:00:51]} 1/2-1/2

[Event "XIX Najdorf Memorial 2019"]
[Site "Warsaw"]
[Date "2019.07.14"]
[Round "9.10"]
[White "Romanishin, Oleg M"]
[Black "Jakubowski, Krzysztof"]
[Result "1/2-1/2"]
[ECO "A46"]
[WhiteElo "2443"]
[BlackElo "2528"]
[Annotator "ChessBase"]
[PlyCount "37"]
[EventDate "2019.07.06"]
[EventType "swiss"]
[EventCountry "POL"]
[SourceTitle "playchess.com"]
[Source "ChessBase"]
[SourceQuality "1"]
[TimeControl "40/5400+30:1800+30"]

1. d4 {[%emt 0:02:00]} Nf6 {[%emt 0:00:00]} 2. Nf3 {[%emt 0:00:14]} e6 {[%emt 0:00:00]} 3. g3 {[%emt 0:00:16]} b5 {[%emt 0:00:08]} 4. Bg5 {[%emt 0:00:06]} c5 {[%emt 0:00:11]} 5. Bxf6 {[%emt 0:05:22]} Qxf6 {[%emt 0:01:10]} 6. Bg2 {[%emt 0:00:18]} Bb7 {[%emt 0:00:44]} 7. O-O {[%emt 0:00:08]} g5 {[%emt 0:16:37]} 8. e4 {[%emt 0:17:09]} g4 {[%emt 0:11:26]} 9. e5 {[%emt 0:08:57]} Qg7 {[%emt 0:02:30]} 10. Nh4 {[%emt 0:07:29]} Bxg2 {[%emt 0:00:16]} 11. Kxg2 {[%emt 0:00:20]} cxd4 {[%emt 0:01:39]} 12. c3 {[%emt 0:03:07]} Qxe5 {[%emt 0:03:13]} 13. Qxg4 {[%emt 0:12:01]} Nc6 {[%emt 0:14:09]} 14. Nf3 {[%emt 0:02:05]} Qd5 {[%emt 0:01:40]} 15. cxd4 {[%emt 0:00:29]} h5 {[%emt 0:00:06]} 16. Qf4 {[%emt 0:00:54]} b4 {[%emt 0:00:08]} 17. Nbd2 {[%emt 0:10:05]} f5 {[%emt 0:00:25]} 18. Qe3 {[%emt 0:02:35]} Rb8 {[%emt 0:03:20]} 19. Qb3 {[%emt 0:01:17]} 1/2-1/2

[Event "XIX Najdorf Memorial 2019"]
[Site "Warsaw"]
[Date "2019.07.14"]
[Round "9.10"]
[White "Czopor, Maciej"]
[Black "Paszewski, Mateusz"]
[Result "0-1"]
[ECO "B29"]
[WhiteElo "2250"]
[BlackElo "2324"]
[Annotator "ChessBase"]
[PlyCount "62"]
[EventDate "2019.07.06"]
[EventType "swiss"]
[EventCountry "POL"]
[SourceTitle "playchess.com"]
[Source "ChessBase"]
[SourceQuality "1"]
[TimeControl "40/5400+30:1800+30"]

1. e4 {[%emt 0:00:00]} c5 {[%emt 0:01:35]} 2. Nf3 {[%emt 0:00:00]} Nf6 {[%emt 0:00:04]} 3. e5 {[%emt 0:06:37]} Nd5 {[%emt 0:00:22]} 4. Nc3 {[%emt 0:01:28]} Nxc3 {[%emt 0:00:05]} 5. dxc3 {[%emt 0:00:20]} Nc6 {[%emt 0:00:11]} 6. Bf4 {[%emt 0:01:55]} Qb6 {[%emt 0:00:53]} 7. b3 {[%emt 0:04:08]} e6 {[%emt 0:00:14]} 8. Qd2 {[%emt 0:01:27]} Qc7 {[%emt 0:01:52]} 9. O-O-O {[%emt 0:05:10]} h6 {[%emt 0:01:50]} 10. h4 {[%emt 0:08:08]} a6 {[%emt 0:00:32]} 11. Kb1 {[%emt 0:08:37]} b5 {[%emt 0:01:37]} 12. h5 {[%emt 0:04:34]} Bb7 {[%emt 0:07:49]} 13. Rh4 {[%emt 0:11:29]} Ne7 {[%emt 0:14:43]} 14. Bh2 {[%emt 0:03:59]} g5 {[%emt 0:18:12]} 15. hxg6 {[%emt 0:09:17]} Nxg6 {[%emt 0:00:23]} 16. Rh5 {[%emt 0:01:02]} O-O-O {[%emt 0:03:58]} 17. Qe3 {[%emt 0:05:08]} Kb8 {[%emt 0:08:25]} 18. Be2 {[%emt 0:09:27]} Rg8 {[%emt 0:12:56]} 19. g4 {[%emt 0:02:18]} Ne7 {[%emt 0:02:59]} 20. Nd2 {[%emt 0:02:39]} Nd5 {[%emt 0:01:33]} 21. Qh3 {[%emt 0:00:43]} Qa5 {[%emt 0:03:13]} 22. Ne4 {[%emt 0:03:14]} c4 {[%emt 0:00:44]} 23. Rd4 {[%emt 0:08:10]} cxb3 {[%emt 0:04:25]} 24. cxb3 {[%emt 0:01:18]} Rc8 {[%emt 0:00:01]} 25. Qd3 {[%emt 0:00:49]} Nxc3+ {[%emt 0:03:52]} 26. Nxc3 {[%emt 0:00:02]} Rxc3 {[%emt 0:00:03]} 27. Qd1 {[%emt 0:00:26]} Ba3 {[%emt 0:00:18]} 28. Bf4 {[%emt 0:00:13]} Rgc8 {[%emt 0:00:30]} 29. Rxd7 {[%emt 0:01:12]} Be4+ {[%emt 0:00:47]} 30. Bd3 {[%emt 0:00:28]} Bxd3+ {[%emt 0:00:16]} 31. Rxd3 {[%emt 0:00:07]} Rxd3 {[%emt 0:00:03]} 0-1